bitfinex/quotes_BTCUSD_20240828
["timestamp","ask_amount","ask_price","bid_price","bid_amount"]
[1724867931493,0.339957,58831.0,58825.0,0.00020464]
[1724867931932,0.169988,58828.0,58825.0,0.00020464]
[1724867932169,0.01739588,58832.0,58825.0,0.00020464]
[1724867932170,0.169992,58826.0,58825.0,0.00020464]
[1724867932408,0.169991,58827.0,58825.0,0.00020464]
[1724867932916,0.509977,58826.0,58825.0,0.00020464]
[1724867933156,0.5949714,58826.0,58825.0,0.00020464]
[1724867933401,0.925362,58826.0,58825.0,0.00020464]
[1724867934354,1.265347,58826.0,58825.0,0.00020464]
[1724867934879,1.769432,58826.0,58825.0,0.00020464]
[1724867935377,1.429447,58826.0,58825.0,0.00020464]
[1724867935600,1.329447,58826.0,58825.0,0.00020464]
[1724867936057,1.4963882,58826.0,58825.0,0.00020464]
[1724867936962,1.329447,58826.0,58825.0,0.00020464]
[1724867942800,0.170016,58818.0,58816.0,0.0763]
[1724867943292,0.00338211,58819.0,58815.0,0.0008998]
[1724867943525,0.510064,58816.0,58815.0,0.0008998]
[1724867943821,0.850107,58816.0,58815.0,0.0008998]
[1724867946795,0.510064,58816.0,58815.0,0.0008998]
[1724867947032,0.17752442,58817.0,58815.0,0.0008998]
[1724867947266,0.510064,58816.0,58815.0,0.0008998]
[1724867947534,0.74102404,58816.0,58815.0,0.0008998]
[1724867947786,0.850107,58816.0,58815.0,0.0008998]
[1724867949172,0.640064,58816.0,58815.0,0.0008998]
[1724867949611,0.980107,58816.0,58815.0,0.0008998]
[1724867951659,1.40095,58816.0,58815.0,0.0008998]
[1724867951890,1.56465,58816.0,58815.0,0.0008998]
[1724867952130,1.73320164,58816.0,58815.0,0.0008998]
[1724867952350,1.56465,58816.0,58815.0,0.0008998]
[1724867952818,1.46465,58816.0,58815.0,0.0008998]
[1724867955342,0.980107,58816.0,58815.0,0.0008998]
[1724867956178,0.640064,58816.0,58815.0,0.0008998]
[1724867957016,0.13,58816.0,58815.0,0.0008998]
[1724867957259,0.13,58816.0,58815.0,0.1709238]
[1724867958111,0.13,58816.0,58815.0,0.0008998]
[1724867958542,0.13,58816.0,58815.0,0.5109728]
[1724867958772,0.13,58816.0,58815.0,0.8510218]
[1724867959016,0.13,58816.0,58815.0,0.9306218]
[1724867959696,0.13,58816.0,58815.0,1.2706708]
[1724867960340,0.13,58816.0,58815.0,1.3327708]
[1724867960545,0.13,58816.0,58815.0,0.9927218]
[1724867961143,0.17455907,58816.0,58815.0,0.6526728]
[1724867961358,0.13,58816.0,58815.0,0.6526728]
[1724867963256,0.13,58816.0,58815.0,0.3126238]
[1724867963466,0.13,58816.0,58815.0,0.1425998]
[1724867963637,0.300021,58816.0,58815.0,0.1425998]
[1724867964416,0.300021,58816.0,58815.0,0.0804998]
[1724867964605,0.13,58816.0,58815.0,0.0804998]
[1724867964817,0.640064,58816.0,58815.0,0.0804998]
[1724867965437,0.13,58816.0,58815.0,0.0804998]
[1724867965660,0.300021,58816.0,58815.0,0.0804998]
[1724867966005,0.13,58816.0,58815.0,0.0804998]
[1724867966211,0.300021,58816.0,58815.0,0.0804998]
[1724867967072,0.300021,58816.0,58815.0,0.0008998]
[1724867967073,0.980107,58816.0,58815.0,0.0008998]
[1724867967274,1.5321634,58816.0,58815.0,0.0008998]
[1724867967501,1.82271549,58816.0,58815.0,0.0008998]
[1724867967721,1.83012791,58816.0,58815.0,0.0008998]
[1724867968167,1.69811451,58816.0,58815.0,0.0008998]
[1724867968595,1.61811451,58816.0,58815.0,0.0008998]
[1724867968842,0.980107,58816.0,58815.0,0.0008998]
[1724867969317,0.300021,58816.0,58815.0,0.0008998]
[1724867969553,0.300021,58816.0,58815.0,0.0654998]
[1724867969554,0.13,58816.0,58815.0,0.0654998]
[1724867970217,0.300021,58816.0,58815.0,0.0654998]
[1724867970674,0.13,58816.0,58815.0,0.2355238]
[1724867970894,0.13,58816.0,58815.0,0.0654998]
[1724867971102,0.300021,58816.0,58815.0,0.0654998]
[1724867971741,0.13,58816.0,58815.0,0.2355238]
[1724867971969,0.13,58816.0,58815.0,0.5755728]
[1724867972417,0.13,58816.0,58815.0,0.0654998]
[1724867972658,0.340024,58820.0,58815.0,0.0654998]
[1724867972871,0.170021,58816.0,58815.0,0.0654998]
[1724867973620,0.1701931,58816.0,58815.0,0.0008998]
[1724867974697,0.5102361,58816.0,58815.0,0.0008998]
[1724867974910,0.1701931,58816.0,58815.0,0.0008998]
[1724867975338,0.5102361,58816.0,58815.0,0.0008998]
[1724867976466,0.8502791,58816.0,58815.0,0.0008998]
[1724867976925,0.9938791,58816.0,58815.0,0.0008998]
[1724867977133,1.3339221,58816.0,58815.0,0.0008998]
[1724867977350,0.9938791,58816.0,58815.0,0.0008998]
[1724867977565,1.3339221,58816.0,58815.0,0.0008998]
[1724867977811,0.9938791,58816.0,58815.0,0.0008998]
[1724867978036,1.3339221,58816.0,58815.0,0.0008998]
[1724867978486,0.9938791,58816.0,58815.0,0.0008998]
[1724867979347,1.43331001,58816.0,58815.0,0.0008998]
[1724867979563,1.38419039,58816.0,58815.0,0.0008998]
[1724867980225,1.3339221,58816.0,58815.0,0.0008998]
[1724867980432,1.38422704,58816.0,58815.0,0.0008998]
[1724867980711,1.72427004,58816.0,58815.0,0.0008998]
[1724867981189,1.38422353,58816.0,58815.0,0.0008998]
[1724867981419,1.38422188,58816.0,58815.0,0.0008998]
[1724867981831,1.72426488,58816.0,58815.0,0.0008998]
[1724867982044,1.3339221,58816.0,58815.0,0.0008998]
[1724867982452,1.48490821,58816.0,58815.0,0.0008998]
[1724867982662,1.3339221,58816.0,58815.0,0.0008998]
[1724867982886,1.43445868,58816.0,58815.0,0.0008998]
[1724867983124,1.77450168,58816.0,58815.0,0.0008998]
[1724867983347,1.43445868,58816.0,58815.0,0.0008998]
[1724867983554,1.3339221,58816.0,58815.0,0.0008998]
[1724867983979,0.92575996,58816.0,58815.0,0.0008998]
[1724867984182,0.8502791,58816.0,58815.0,0.0008998]
[1724867984388,0.90059663,58816.0,58815.0,0.0008998]
[1724867985421,0.5102361,58816.0,58815.0,0.0008998]
[1724867985903,0.8502791,58816.0,58815.0,0.0008998]
[1724867986337,0.87694498,58816.0,58815.0,0.0008998]
[1724867986768,0.53690198,58816.0,58815.0,0.0008998]
[1724867988562,0.87694498,58816.0,58815.0,0.0008998]
[1724867989908,0.53690198,58816.0,58815.0,0.0008998]
[1724867990147,0.87694498,58816.0,58815.0,0.0008998]
[1724867991881,0.87674035,58816.0,58815.0,0.0008998]
[1724867992357,1.34691484,58816.0,58815.0,0.0008998]
[1724867992618,1.45548266,58816.0,58815.0,0.0008998]
[1724867992824,1.29658335,58816.0,58815.0,0.0008998]
[1724867993048,1.42237609,58816.0,58815.0,0.0008998]
[1724867993280,1.76241909,58816.0,58815.0,0.0008998]
[1724867993504,1.29658335,58816.0,58815.0,0.0008998]
[1724867993956,1.34689471,58816.0,58815.0,0.0008998]
[1724867994177,0.87674035,58816.0,58815.0,0.0008998]
[1724867995524,0.19685898,58816.0,58815.0,0.0008998]
[1724867997540,0.53690198,58816.0,58815.0,0.0008998]
[1724867998619,0.02683798,58816.0,58815.0,0.0008998]
[1724867998880,0.02683798,58816.0,58815.0,0.0833998]
[1724867999110,0.53690198,58816.0,58815.0,0.0833998]
[1724867999326,0.02683798,58816.0,58815.0,0.0833998]
[1724867999772,0.19685898,58816.0,58815.0,0.0833998]
[1724868000005,0.02683798,58816.0,58815.0,0.0833998]
[1724868000217,0.02683798,58816.0,58815.0,0.4231888]
[1724868000432,0.02683798,58816.0,58815.0,0.6591128]
[1724868000643,0.02683798,58816.0,58815.0,0.1490398]
[1724868000861,0.02683798,58816.0,58815.0,0.3190638]
[1724868001134,0.02683798,58816.0,58815.0,0.6591128]
[1724868001349,0.02683798,58816.0,58815.0,0.9991618]
[1724868001992,0.0001721,58816.0,58815.0,0.6591128]
[1724868002240,0.0001721,58816.0,58815.0,0.9991618]
[1724868002459,0.0001721,58816.0,58815.0,1.3392108]
[1724868002677,0.0001721,58816.0,58815.0,1.3462108]
[1724868003342,0.0001721,58816.0,58815.0,1.3442108]
[1724868003810,0.0001721,58816.0,58815.0,0.1490398]
[1724868003811,0.1701931,58816.0,58815.0,0.1490398]
[1724868004056,0.90619241,58816.0,58815.0,0.0665398]
[1724868004290,1.1903221,58816.0,58815.0,0.0665398]
[1724868004512,1.26584968,58816.0,58815.0,0.0665398]
[1724868004731,1.39520141,58816.0,58815.0,0.0665398]
[1724868004963,1.39520141,58816.0,58815.0,0.0006398]
[1724868004964,1.35216427,58816.0,58815.0,0.0006398]
[1724868005245,1.32699169,58816.0,58815.0,0.0006398]
[1724868005713,0.59307827,58816.0,58815.0,0.0006398]
[1724868005939,0.51756032,58816.0,58815.0,0.0006398]
[1724868006198,0.85760332,58816.0,58815.0,0.0006398]
[1724868006427,1.0121481,58816.0,58815.0,0.0006398]
[1724868006655,1.44053488,58816.0,58815.0,0.0006398]
[1724868007118,0.99980332,58816.0,58815.0,0.0006398]
[1724868007345,0.65630866,58816.0,58815.0,0.0006398]
[1724868007613,0.51756032,58816.0,58815.0,0.0006398]
[1724868007859,0.85760332,58816.0,58815.0,0.0006398]
[1724868008085,0.90796819,58816.0,58815.0,0.0006398]
[1724868008312,1.56530433,58816.0,58815.0,0.0006398]
[1724868008546,1.57259374,58816.0,58815.0,0.0006398]
[1724868008788,1.59386514,58816.0,58815.0,0.0006398]
[1724868009017,1.69459274,58816.0,58815.0,0.0006398]
[1724868009235,1.59386514,58816.0,58815.0,0.0006398]
[1724868009449,1.71977884,58816.0,58815.0,0.0006398]
[1724868009667,1.59386514,58816.0,58815.0,0.0006398]
[1724868009888,2.16295978,58816.0,58815.0,0.0006398]
[1724868010148,1.82291678,58816.0,58815.0,0.0006398]
[1724868010357,1.65436514,58816.0,58815.0,0.0006398]
[1724868011053,1.78027535,58816.0,58815.0,0.0006398]
[1724868011284,1.65436514,58816.0,58815.0,0.0006398]
[1724868011784,1.78027535,58816.0,58815.0,0.0006398]
[1724868011999,1.65436514,58816.0,58815.0,0.0006398]
[1724868012204,1.82291678,58816.0,58815.0,0.0006398]
[1724868012701,2.41605439,58816.0,58815.0,0.0006398]
[1724868012940,2.26295978,58816.0,58815.0,0.0006398]
[1724868013369,2.09440814,58816.0,58815.0,0.0006398]
[1724868014349,1.62346509,58803.0,58802.0,0.0008998]
[1724868014599,1.62346509,58803.0,58791.0,0.0004]
[1724868014600,0.250891,58792.0,58791.0,0.0004]
[1724868014824,2.48557744,58792.0,58791.0,0.0004]
[1724868015060,1.96387109,58792.0,58791.0,0.0004]
[1724868015367,2.1401095,58792.0,58791.0,0.0004]
[1724868015567,2.26578301,58792.0,58791.0,0.0004]
[1724868015808,2.09055043,58792.0,58791.0,0.0004]
[1724868016031,2.25910207,58792.0,58791.0,0.0004]
[1724868016283,1.850823,58792.0,58791.0,0.0004]
[1724868016509,1.82571117,58792.0,58791.0,0.0004]
[1724868016736,1.65036843,58792.0,58791.0,0.0004]
[1724868017589,1.65036843,58792.0,58778.0,0.07504]
[1724868017590,0.170128,58780.0,58778.0,0.07504]
[1724868017851,0.510385,58779.0,58778.0,0.07504]
[1724868018064,0.340245,58782.0,58778.0,0.07504]
[1724868018273,0.340245,58782.0,58776.0,0.06094]
[1724868018274,0.02668183,58779.0,58776.0,0.06094]
[1724868018484,0.170134,58777.0,58776.0,0.06094]
[1724868018694,0.02668183,58779.0,58776.0,0.06094]
[1724868019128,0.170134,58777.0,58776.0,0.06094]
[1724868019771,0.19681283,58779.0,58776.0,0.06987647]
[1724868019943,0.02668183,58779.0,58776.0,0.06987647]
[1724868020570,0.02668183,58779.0,58778.0,0.510394]
[1724868020797,0.02668183,58779.0,58778.0,1.34342]
[1724868021017,0.02668183,58779.0,58778.0,1.00608817]
[1724868022592,0.02668183,58779.0,58778.0,1.34635117]
[1724868022825,0.0647,58798.0,58797.0,0.589929]
[1724868023051,0.0647,58798.0,58797.0,1.22063409]
[1724868023303,0.0647,58798.0,58797.0,1.57466793]
[1724868023755,0.10040501,58811.0,58810.0,0.170039]
[1724868023967,0.10040501,58811.0,58810.0,0.589817]
[1724868024190,0.12550627,58813.0,58811.0,0.170035]
[1724868024426,0.12550627,58813.0,58810.0,0.15124642]
[1724868024656,0.170029,58814.0,58812.0,0.00884113]
[1724868024871,0.170033,58812.0,58811.0,0.00884378]
[1724868025081,0.04955907,58813.0,58806.0,0.3401]
[1724868025310,0.170027,58814.0,58806.0,0.3401]
[1724868025600,0.05457012,58813.0,58805.0,0.170053]
[1724868025826,0.170035,58812.0,58807.0,0.170046]
[1724868026049,0.170037,58811.0,58805.0,0.340105]
[1724868026256,0.01734191,58810.0,58804.0,0.0797]
[1724868026465,0.170046,58808.0,58804.0,0.0797]
[1724868026688,0.170038,58811.0,58806.0,0.170048]
[1724868026949,0.17004,58810.0,58804.0,0.0797]
[1724868027133,0.17004,58810.0,58805.0,0.170052]
[1724868027383,0.22371765,58810.0,58805.0,0.170052]
[1724868028214,0.340085,58809.0,58804.0,0.0797]
[1724868028433,0.340085,58809.0,58799.0,0.0792]
[1724868028434,0.39302618,58809.0,58799.0,0.0792]
[1724868028644,0.04955907,58809.0,58799.0,0.419338]
[1724868028849,0.1967015,58812.0,58806.0,0.340098]
[1724868029056,0.0266675,58812.0,58803.0,0.340113]
[1724868029272,0.0266675,58812.0,58799.0,0.0792]
[1724868029273,0.12631285,58812.0,58799.0,0.0792]
[1724868029465,0.04955907,58811.0,58801.0,0.340127]
[1724868029932,0.04955907,58811.0,58799.0,0.0792]
[1724868029933,0.00338211,58810.0,58799.0,0.0792]
[1724868030398,0.04955907,58809.0,58797.0,0.0629]
[1724868030681,0.08048211,58808.0,58797.0,0.0629]
[1724868030894,0.08048211,58808.0,58786.0,0.0761]
[1724868030895,0.0771,58796.0,58786.0,0.0761]
[1724868031121,0.00338211,58795.0,58786.0,0.0761]
[1724868031333,0.170105,58787.0,58786.0,0.0761]
[1724868031802,0.340184,58792.0,58786.0,0.0761]
[1724868032013,0.340184,58792.0,58786.0,0.00836845]
[1724868032014,0.170103,58788.0,58786.0,0.00836845]
[1724868032226,0.170105,58787.0,58786.0,0.00836845]
[1724868032414,0.340196,58790.0,58782.0,0.0796]
[1724868032655,0.340139,58800.0,58783.0,0.343636]
[1724868032871,0.340129,58802.0,58793.0,0.340176]
[1724868033083,0.170071,58799.0,58795.0,0.170081]
[1724868033315,0.340129,58802.0,58794.0,0.00845363]
[1724868033529,0.340142,58799.0,58796.0,0.00844833]
[1724868033744,0.510229,58797.0,58796.0,0.00844833]
[1724868033973,0.170088,58793.0,58788.0,0.1701]
[1724868034184,0.340197,58790.0,58782.0,0.483038]
[1724868034405,0.170093,58792.0,58786.0,0.170106]
[1724868034622,0.170093,58792.0,58787.0,0.170104]
[1724868034800,0.170094,58791.0,58787.0,0.17857617]
[1724868035054,0.170102,58788.0,58787.0,0.00847217]
[1724868035490,0.02667523,58791.0,58782.0,0.1428]
[1724868035718,0.850516,58788.0,58787.0,0.00866627]
[1724868035944,0.170114,58784.0,58782.0,0.0632]
[1724868036171,0.510342,58784.0,58783.0,0.00867687]
[1724868036410,0.510342,58784.0,58778.0,0.25313]
[1724868036411,0.170128,58779.0,58778.0,0.083]
[1724868036639,0.04911396,58787.0,58780.0,0.170124]
[1724868036864,0.04911396,58787.0,58775.0,0.340278]
[1724868036865,0.02667885,58784.0,58777.0,0.340267]
[1724868037073,0.19679285,58784.0,58780.0,0.170124]
[1724868037258,0.170117,58783.0,58779.0,0.170127]
[1724868037711,0.02667885,58784.0,58779.0,0.340256]
[1724868038166,0.02667885,58784.0,58776.0,0.0009398]
[1724868038414,0.02667885,58784.0,58783.0,0.170117]
[1724868038634,0.02667885,58784.0,58783.0,0.932785]
[1724868038843,0.02667885,58784.0,58783.0,0.992785]
[1724868039271,0.02667885,58784.0,58783.0,0.652551]
[1724868039725,0.02667885,58784.0,58783.0,0.992785]
[1724868039937,0.02667885,58784.0,58783.0,1.333019]
[1724868041556,0.02667885,58784.0,58783.0,0.1422]
[1724868041792,0.02667885,58784.0,58777.0,0.479466]
[1724868042080,0.36690685,58784.0,58777.0,0.479466]
[1724868042334,0.170118,58783.0,58779.0,0.170126]
[1724868042545,0.36690685,58784.0,58777.0,0.170134]
[1724868042546,0.170124,58781.0,58777.0,0.170134]
[1724868042792,0.170124,58781.0,58776.0,0.0009398]
[1724868042793,0.39395059,58781.0,58776.0,0.0009398]
[1724868043028,0.02667885,58784.0,58776.0,0.0009398]
[1724868043275,0.170134,58777.0,58776.0,0.0009398]
[1724868043525,0.170133,58778.0,58776.0,0.0009398]
[1724868043761,0.17013,58779.0,58776.0,0.0009398]
[1724868044014,0.50540786,58796.0,58776.0,0.0009398]
[1724868044015,0.02668026,58778.0,58776.0,0.0009398]
[1724868045253,0.02668026,58778.0,58777.0,0.170134]
[1724868045976,0.02668026,58778.0,58776.0,0.1710768]
[1724868046473,0.02668026,58778.0,58777.0,0.170134]
[1724868047426,0.02668026,58778.0,58776.0,0.0009398]
[1724868047900,0.510403,58777.0,58776.0,0.0009398]
[1724868048136,1.69915639,58777.0,58776.0,0.0009398]
[1724868048395,2.13942539,58777.0,58776.0,0.0009398]
[1724868048621,1.79915639,58777.0,58776.0,0.0009398]
[1724868048886,2.13942539,58777.0,58776.0,0.0009398]
[1724868049129,1.96770803,58777.0,58776.0,0.0009398]
[1724868050077,1.97489787,58777.0,58776.0,0.0009398]
[1724868050740,1.10246184,58777.0,58776.0,0.0009398]
[1724868051811,1.44273084,58777.0,58776.0,0.0009398]
[1724868052017,1.10246184,58777.0,58776.0,0.0009398]
[1724868052693,0.76719284,58777.0,58776.0,0.0009398]
[1724868052907,0.0714,58777.0,58776.0,0.0009398]
[1724868053606,0.07478211,58777.0,58776.0,0.0009398]
[1724868053864,0.08078211,58777.0,58776.0,0.0019398]
[1724868054084,0.0664,58777.0,58776.0,0.1801514]
[1724868054331,0.0664,58777.0,58776.0,0.1710768]
[1724868054512,0.005,58777.0,58776.0,0.1841514]
[1724868055007,0.02668026,58778.0,58776.0,0.0140144]
[1724868055431,0.001,58777.0,58776.0,0.5334254]
[1724868055883,0.02668026,58778.0,58777.0,0.170134]
[1724868056184,0.02668026,58778.0,58777.0,0.509403]
[1724868056194,0.02668026,58778.0,58777.0,0.51841153]
[1724868056647,0.02668026,58778.0,58777.0,0.17714253]
[1724868056868,0.02668026,58778.0,58777.0,0.51741153]
[1724868057076,0.02668026,58778.0,58777.0,0.17714253]
[1724868057288,0.02768026,58778.0,58777.0,0.01900853]
[1724868057509,0.02768026,58778.0,58777.0,0.52941153]
[1724868057708,0.02768026,58778.0,58777.0,0.18914253]
[1724868058114,0.02768026,58778.0,58777.0,0.52941153]
[1724868058337,0.02768026,58778.0,58777.0,1.20994953]
[1724868058822,0.46402375,58796.0,58789.0,0.170098]
[1724868059031,0.1005297,58805.0,58787.0,0.340207]
[1724868059032,0.05026485,58804.0,58793.0,0.170088]
[1724868059254,0.000818,58807.0,58797.0,0.170076]
[1724868059481,0.02667521,58802.0,58792.0,0.340178]
[1724868059689,0.0609,58800.0,58799.0,0.17007]
[1724868059925,0.02667521,58802.0,58799.0,0.00893194]
[1724868060146,0.02667521,58802.0,58796.0,0.170079]
[1724868060387,0.19673721,58802.0,58800.0,0.0089293]
[1724868060594,0.02667521,58802.0,58791.0,0.340185]
[1724868060824,0.02667521,58802.0,58792.0,0.16909]
[1724868060825,0.170072,58799.0,58792.0,0.16909]
[1724868061029,0.34013,58801.0,58793.0,0.170088]
[1724868061030,0.170068,58800.0,58793.0,0.170088]
[1724868061283,0.04634893,58802.0,58794.0,0.00894518]
[1724868061548,0.04634893,58802.0,58779.0,0.0647]
[1724868061549,0.36361539,58800.0,58779.0,0.0647]
[1724868061789,0.340175,58794.0,58783.0,0.50540786]
[1724868062006,0.170093,58792.0,58780.0,0.00898227]
[1724868062225,0.02667746,58792.0,58786.0,0.170106]
[1724868062449,0.39029285,58792.0,58787.0,0.00887211]
[1724868062697,0.0773,58788.0,58775.0,0.340279]
[1724868062938,0.10397746,58792.0,58777.0,0.51430646]
[1724868063132,0.02667746,58792.0,58787.0,0.0754]
[1724868063345,0.1,58798.0,58791.0,0.340182]
[1724868063588,0.000818,58800.0,58787.0,0.0754]
[1724868063854,0.000818,58800.0,58799.0,0.510211]
[1724868064077,0.000818,58800.0,58799.0,0.51905133]
[1724868064286,0.02749063,58800.0,58799.0,0.51905133]
[1724868064498,0.02749063,58800.0,58799.0,0.85919233]
[1724868065201,0.02749063,58800.0,58799.0,0.51905133]
[1724868065421,0.02749063,58800.0,58799.0,0.85919233]
[1724868065678,0.02749063,58800.0,58799.0,0.93509233]
[1724868065891,0.02749063,58800.0,58799.0,1.27623333]
[1724868066106,0.02749063,58800.0,58799.0,1.33813333]
[1724868066333,0.00096117,58800.0,58799.0,1.70327433]
[1724868066589,0.000818,58807.0,58806.0,1.197353]
[1724868066802,0.000818,58807.0,58806.0,1.611354]
[1724868067017,0.000818,58807.0,58806.0,1.33697479]
[1724868067237,0.000818,58807.0,58806.0,1.33597479]
[1724868068132,0.000818,58807.0,58806.0,1.00987379]
[1724868068345,0.000818,58807.0,58806.0,0.25377179]
[1724868068554,0.000818,58807.0,58806.0,0.59387279]
[1724868068776,0.000818,58807.0,58806.0,0.94797379]
[1724868069428,0.000818,58807.0,58806.0,0.88607379]
[1724868070069,0.000818,58807.0,58806.0,1.30157479]
[1724868070969,0.000818,58807.0,58806.0,1.64667579]
[1724868071192,0.000818,58807.0,58806.0,2.05227679]
[1724868071408,0.000818,58807.0,58806.0,1.71217579]
[1724868072574,0.02747872,58807.0,58806.0,1.36707479]
[1724868072835,0.02747872,58807.0,58806.0,1.71417579]
[1724868073077,0.02747872,58807.0,58806.0,2.07731461]
[1724868073286,0.02747872,58807.0,58806.0,2.08231461]
[1724868073710,0.02747872,58807.0,58806.0,1.71817579]
[1724868073952,0.02747872,58807.0,58806.0,1.71717579]
[1724868074382,0.02747872,58807.0,58806.0,1.70317579]
[1724868074614,0.02747872,58807.0,58806.0,1.68917579]
[1724868074835,0.02747872,58807.0,58806.0,1.69317579]
[1724868075037,0.02747872,58807.0,58806.0,1.71217579]
[1724868075479,0.02747872,58807.0,58806.0,1.71717579]
[1724868075920,0.02747872,58807.0,58806.0,1.36707479]
[1724868076631,0.02747872,58807.0,58806.0,0.03682179]
[1724868076874,0.02747872,58807.0,58806.0,0.19805]
[1724868077109,0.02747872,58807.0,58806.0,1.218353]
[1724868077551,0.02747872,58807.0,58806.0,0.864252]
[1724868077762,0.02747872,58807.0,58806.0,0.17805]
[1724868077996,0.02747872,58807.0,58806.0,0.18505]
[1724868078212,0.02747872,58807.0,58806.0,0.517151]
[1724868078435,0.02747872,58807.0,58806.0,0.531151]
[1724868078665,0.02747872,58807.0,58806.0,0.864252]
[1724868078888,0.02747872,58807.0,58806.0,0.878252]
[1724868079797,0.02747872,58807.0,58806.0,0.864252]
[1724868080217,0.04518509,58807.0,58806.0,1.204353]
[1724868080464,0.04518509,58807.0,58806.0,1.281353]
[1724868080730,0.04518509,58807.0,58806.0,1.702654]
[1724868081133,0.04518509,58807.0,58806.0,1.361553]
[1724868081836,0.04518509,58807.0,58806.0,1.701654]
[1724868082070,0.04518509,58807.0,58806.0,1.706654]
[1724868082285,0.0009901,58816.0,58815.0,1.272171]
[1724868082502,0.0009901,58816.0,58815.0,1.61722]
[1724868082742,0.0009901,58816.0,58815.0,1.957269]
[1724868083207,1e-07,58816.0,58815.0,1.9565235]
[1724868083423,0.00029826,58824.0,58823.0,2.0174705]
[1724868083660,0.00029826,58824.0,58823.0,2.38060932]
[1724868084321,0.00029826,58824.0,58823.0,2.38260932]
[1724868084581,0.00029826,58824.0,58823.0,2.39660932]
[1724868084785,0.00029826,58824.0,58823.0,1.34721]
[1724868085021,0.00029826,58824.0,58823.0,1.34221]
[1724868085263,0.00029826,58824.0,58823.0,0.198001]
[1724868085503,0.00029826,58824.0,58823.0,0.028]
[1724868085714,0.02695626,58824.0,58823.0,0.198001]
[1724868086136,0.02695626,58824.0,58823.0,0.028]
[1724868086364,0.02695626,58824.0,58823.0,0.184001]
[1724868086602,0.02695626,58824.0,58823.0,1.29501]
[1724868087075,0.02695626,58824.0,58823.0,1.28101]
[1724868087510,0.02695626,58824.0,58823.0,1.29501]
[1724868087732,0.02695626,58824.0,58823.0,1.28101]
[1724868087943,0.02695626,58824.0,58823.0,1.26701]
[1724868088161,0.02695626,58824.0,58823.0,1.28101]
[1724868088384,0.02695626,58824.0,58823.0,1.29501]
[1724868088593,0.02695626,58824.0,58823.0,1.635013]
[1724868088802,0.02695626,58824.0,58823.0,1.621013]
[1724868089012,0.02695626,58824.0,58823.0,1.7004675]
[1724868089441,0.02777326,58824.0,58823.0,1.7024675]
[1724868089671,0.02777326,58824.0,58823.0,1.6934675]
[1724868090116,0.02777326,58824.0,58823.0,1.7074675]
[1724868090568,0.02777326,58824.0,58823.0,1.36121]
[1724868090844,0.02777326,58824.0,58823.0,1.34721]
[1724868091072,0.02777326,58824.0,58823.0,1.33321]
[1724868091305,0.02777326,58824.0,58823.0,1.34721]
[1724868091540,0.02777326,58824.0,58823.0,1.36121]
[1724868091764,0.02777326,58824.0,58823.0,1.34721]
[1724868091979,0.02777326,58824.0,58823.0,1.36121]
[1724868092647,0.02777326,58824.0,58823.0,1.702213]
[1724868092868,0.02777326,58824.0,58823.0,1.6934675]
[1724868093089,0.02777326,58824.0,58823.0,1.7304675]
[1724868093726,0.02777326,58824.0,58823.0,2.0704705]
[1724868094176,0.02777326,58824.0,58823.0,2.1704705]
[1724868094398,0.00817,58838.0,58831.0,2.04239532]
[1724868094642,0.00817,58838.0,58831.0,1.7772565]
[1724868095299,0.00817,58838.0,58831.0,1.7792565]
[1724868095516,0.00817,58838.0,58831.0,1.7932565]
[1724868095738,0.00817,58838.0,58831.0,1.8212565]
[1724868096184,0.00817,58838.0,58831.0,1.8052565]
[1724868096405,0.00817,58838.0,58831.0,1.2991005]
[1724868096616,0.00817,58838.0,58831.0,1.2851005]
[1724868096822,0.00817,58838.0,58831.0,1.6390565]
[1724868097073,0.00817,58838.0,58831.0,1.6270565]
[1724868097361,0.00817,58838.0,58831.0,2.04669532]
[1724868097575,0.00817,58838.0,58831.0,2.19769532]
[1724868097781,0.00817,58838.0,58831.0,2.52365132]
[1724868097986,0.00817,58838.0,58831.0,2.50965132]
[1724868098201,0.00817,58838.0,58831.0,2.52365132]
[1724868098428,1e-08,58832.0,58831.0,2.18369532]
[1724868098630,0.02664797,58832.0,58831.0,2.18369532]
[1724868098840,0.02664797,58832.0,58831.0,2.16969532]
[1724868099083,0.00817,58838.0,58837.0,1.6174035]
[1724868099308,0.00817,58838.0,58837.0,1.7779035]
[1724868099995,0.00817,58838.0,58837.0,1.7769035]
[1724868100420,0.00817,58838.0,58837.0,1.7779035]
[1724868100868,0.00817,58838.0,58837.0,1.7919035]
[1724868101100,0.00817,58838.0,58837.0,1.8059035]
[1724868101311,0.00817,58838.0,58837.0,1.8289035]
[1724868102492,0.00817,58838.0,58837.0,2.1688255]
[1724868102913,0.00817,58838.0,58837.0,2.1738255]
[1724868103129,0.00082764,58847.0,58846.0,1.6123695]
[1724868103361,0.00082764,58847.0,58846.0,1.6973695]
[1724868103646,6.4e-07,58847.0,58846.0,2.1472395]
[1724868103838,6.4e-07,58847.0,58846.0,2.49440443]
[1724868104284,6.4e-07,58847.0,58846.0,2.50840443]
[1724868104503,0.00072303,58855.0,58854.0,1.6151575]
[1724868104744,0.00072303,58855.0,58854.0,1.6381575]
[1724868104961,0.00072303,58855.0,58854.0,1.605903]
[1724868105186,0.02736316,58855.0,58854.0,1.18938]
[1724868105408,0.02736316,58855.0,58854.0,0.849557]
[1724868106987,0.02736316,58855.0,58854.0,0.863557]
[1724868107882,0.02736316,58855.0,58854.0,1.20338]
[1724868108106,0.02736316,58855.0,58854.0,1.21738]
[1724868108546,0.02736316,58855.0,58854.0,1.30058]
[1724868109219,0.02736316,58855.0,58854.0,1.6466575]
[1724868109440,0.02736316,58855.0,58854.0,1.7386575]
[1724868109660,0.02736316,58855.0,58854.0,1.8386575]
[1724868109874,0.02736316,58855.0,58854.0,1.4968345]
[1724868110175,0.02736316,58855.0,58854.0,1.40558]
[1724868110618,0.02736316,58855.0,58854.0,1.7496575]
[1724868110851,0.02736316,58855.0,58854.0,1.7746575]
[1724868111298,0.02736316,58855.0,58854.0,1.770403]
[1724868111542,0.02736316,58855.0,58854.0,1.40558]
[1724868111791,0.02736316,58855.0,58854.0,1.40758]
[1724868112267,0.02736316,58855.0,58854.0,1.40558]
[1724868112942,0.02736316,58855.0,58854.0,1.40758]
[1724868113403,0.00103144,58863.0,58857.0,1.5403815]
[1724868113642,0.00103144,58863.0,58857.0,2.16972032]
[1724868113868,0.00103144,58863.0,58857.0,2.51452632]
[1724868114112,0.00103144,58863.0,58862.0,1.5402505]
[1724868114337,0.00103144,58863.0,58862.0,2.1540275]
[1724868116433,0.00103144,58863.0,58862.0,1.809996]